[Event "FIDE Womens Grand Swiss 2023"]
[Site "Douglas/Isle of Man"]
[Date "2023.11.01"]
[Round "7.14"]
[White "Javakhishvili, Lela"]
[Black "Hoang, Thanh Trang"]
[Result "1-0"]
[ECO "A14"]
[WhiteElo "2437"]
[BlackElo "2398"]
[Annotator "ChessBase"]
[PlyCount "139"]
[EventDate "2023.10.04"]
[EventType "swiss"]
[EventCountry "GBR"]
[SourceTitle "playchess.com"]
[Source "ChessBase"]
[SourceQuality "1"]
[TimeControl "40/6000+30:20/3000+30:900+30"]

1. c4 {[%emt 0:10:06]} e6 {[%emt 0:10:37]} 2. g3 {[%emt 0:00:17]} d5 {[%emt 0:00:39]} 3. Bg2 {[%emt 0:00:08]} Nf6 {[%emt 0:01:09]} 4. Nf3 {[%emt 0:00:16]} Be7 {[%emt 0:00:48]} 5. O-O {[%emt 0:00:22]} O-O {[%emt 0:00:23]} 6. b3 {[%emt 0:00:15]} c6 {[%emt 0:03:18]} 7. Bb2 {[%emt 0:01:12]} Nbd7 {[%emt 0:00:28]} 8. Nc3 {[%emt 0:04:37]} b6 {[%emt 0:04:01]} 9. cxd5 {[%emt 0:06:17]} cxd5 {[%emt 0:04:16]} 10. Rc1 {[%emt 0:08:57]} Bb7 {[%emt 0:03:27]} 11. Nd4 {[%emt 0:02:36]} a6 {[%emt 0:06:43]} 12. a3 {[%emt 0:01:09]} Rc8 {[%emt 0:05:28]} 13. b4 {[%emt 0:01:44]} Re8 {[%emt 0:10:28]} 14. d3 {[%emt 0:08:26]} Bf8 {[%emt 0:01:34]} 15. b5 {[%emt 0:05:21]} Nc5 {[%emt 0:06:18]} 16. a4 {[%emt 0:04:56]} e5 {[%emt 0:05:17]} 17. bxa6 {[%emt 0:03:50]} Bxa6 {[%emt 0:01:16]} 18. Ndb5 {[%emt 0:02:30]} d4 {[%emt 0:01:36]} 19. Nb1 {[%emt 0:01:44]} Qd7 {[%emt 0:04:52]} 20. N1a3 {[%emt 0:00:20]} Bb7 {[%emt 0:05:51]} 21. Bxb7 {[%emt 0:00:20]} Qxb7 {[%emt 0:00:19]} 22. Nc4 {[%emt 0:00:16]} Re6 {[%emt 0:00:41]} 23. e3 {[%emt 0:04:51]} dxe3 {[%emt 0:04:10]} 24. fxe3 {[%emt 0:02:59]} Qd5 {[%emt 0:05:27]} 25. d4 {[%emt 0:07:09]} Ncd7 {[%emt 0:05:46]} 26. dxe5 {[%emt 0:14:00]} Rxc4 {[%emt 0:00:26]} 27. Qxd5 {[%emt 0:00:34]} Nxd5 {[%emt 0:00:09]} 28. Rxc4 {[%emt 0:00:03]} Nxe3 {[%emt 0:00:52]} 29. Rc8 {[%emt 0:03:37]} Nxf1 {[%emt 0:00:16]} 30. Kxf1 {[%emt 0:00:06]} g5 {[%emt 0:07:20]} 31. Rd8 {[%emt 0:04:11]} Nxe5 {[%emt 0:01:28]} 32. Nc7 {[%emt 0:00:47]} Rd6 {[%emt 0:04:21]} 33. Ra8 {[%emt 0:03:41]} Nc4 {[%emt 0:02:09]} 34. Bc3 {[%emt 0:00:37]} f5 {[%emt 0:02:40]} 35. Bb4 {[%emt 0:04:08]} Rf6 {[%emt 0:00:24]} 36. Nd5 {[%emt 0:00:29]} Rf7 {[%emt 0:00:14]} 37. Rc8 {[%emt 0:00:28]} Ne5 {[%emt 0:01:48]} 38. Nxb6 {[%emt 0:00:39]} f4 {[%emt 0:01:03]} 39. Rxf8+ {[%emt 0:01:42]} Rxf8 {[%emt 0:00:08]} 40. Bxf8 {[%emt 0:00:03]} Kxf8 {[%emt 0:01:09]} 41. gxf4 {[%emt 0:50:21]} gxf4 {[%emt 0:50:05]} 42. a5 {[%emt 0:00:28]} Nc6 {[%emt 0:00:00]} 43. a6 {[%emt 0:00:00]} Na7 {[%emt 0:00:00]} 44. Nd5 {[%emt 0:00:00]} Kf7 {[%emt 0:00:00]} 45. Kf2 {[%emt 0:00:00]} Ke6 {[%emt 0:00:00]} 46. Nxf4+ {[%emt 0:00:00]} Kd6 {[%emt 0:00:00]} 47. Nh5 {[%emt 0:00:00]} Kc6 {[%emt 0:00:00]} 48. Nf6 {[%emt 0:00:00]} h6 {[%emt 0:00:00]} 49. Ng8 {[%emt 0:00:00]} Kb6 {[%emt 0:00:00]} 50. Nxh6 {[%emt 0:00:00]} Kxa6 {[%emt 0:00:00]} 51. h4 {[%emt 0:00:00]} Nc6 {[%emt 0:00:00]} 52. h5 {[%emt 0:00:00]} Ne5 {[%emt 0:00:00]} 53. Ke3 {[%emt 0:00:00]} Kb6 {[%emt 0:00:00]} 54. Ke4 {[%emt 0:00:00]} Nd7 {[%emt 0:00:35]} 55. Kf5 {[%emt 0:01:07]} Kc7 {[%emt 0:00:18]} 56. Nf7 {[%emt 0:00:39]} Nf8 {[%emt 0:00:45]} 57. Kf6 {[%emt 0:02:02]} Kd7 {[%emt 0:00:28]} 58. Ng5 {[%emt 0:00:54]} Ke8 {[%emt 0:00:48]} 59. h6 {[%emt 0:00:44]} Nd7+ {[%emt 0:00:49]} 60. Kg7 {[%emt 0:00:27]} Nf8 {[%emt 0:00:13]} 61. Kg8 {[%emt 0:15:47]} Ke7 {[%emt 0:16:40]} 62. Ne4 {[%emt 0:01:13]} Ke8 {[%emt 0:00:35]} 63. Nc5 {[%emt 0:02:58]} Ke7 {[%emt 0:00:14]} 64. Kg7 {[%emt 0:01:07]} Ke8 {[%emt 0:00:22]} 65. Nd3 {[%emt 0:02:04]} Ne6+ {[%emt 0:01:11]} 66. Kf6 {[%emt 0:00:30]} Nf8 {[%emt 0:00:25]} 67. Nf4 {[%emt 0:00:15]} Nh7+ {[%emt 0:03:02]} 68. Kg6 {[%emt 0:00:12]} Nf8+ {[%emt 0:00:07]} 69. Kg7 {[%emt 0:00:04]} Ne6+ {[%emt 0:00:16]} 70. Nxe6 {[%emt 0:00:18]} 1-0

[Event "FIDE Womens Grand Swiss 2023"]
[Site "Douglas/Isle of Man"]
[Date "2023.11.01"]
[Round "7.15"]
[White "Mkrtchyan, Mariam"]
[Black "Gunina, Valentina"]
[Result "0-1"]
[ECO "D17"]
[WhiteElo "2343"]
[BlackElo "2439"]
[Annotator "ChessBase"]
[PlyCount "162"]
[EventDate "2023.10.04"]
[EventType "swiss"]
[EventCountry "GBR"]
[SourceTitle "playchess.com"]
[Source "ChessBase"]
[SourceQuality "1"]
[TimeControl "40/6000+30:20/3000+30:900+30"]

1. d4 {[%emt 0:10:03]} d5 {[%emt 0:10:09]} 2. c4 {[%emt 0:00:05]} c6 {[%emt 0:00:05]} 3. Nf3 {[%emt 0:00:11]} Nf6 {[%emt 0:00:09]} 4. Nc3 {[%emt 0:00:04]} dxc4 {[%emt 0:00:08]} 5. a4 {[%emt 0:00:05]} Bf5 {[%emt 0:00:12]} 6. Ne5 {[%emt 0:00:05]} Nbd7 {[%emt 0:00:10]} 7. Nxc4 {[%emt 0:00:05]} Qc7 {[%emt 0:00:12]} 8. g3 {[%emt 0:00:15]} e5 {[%emt 0:00:14]} 9. dxe5 {[%emt 0:00:06]} Nxe5 {[%emt 0:00:06]} 10. Bf4 {[%emt 0:00:06]} Nfd7 {[%emt 0:00:09]} 11. Bg2 {[%emt 0:00:10]} g5 {[%emt 0:00:24]} 12. Ne3 {[%emt 0:00:11]} gxf4 {[%emt 0:00:23]} 13. Nxf5 {[%emt 0:00:03]} O-O-O {[%emt 0:00:19]} 14. Qc2 {[%emt 0:00:13]} fxg3 {[%emt 0:00:20]} 15. hxg3 {[%emt 0:00:10]} Kb8 {[%emt 0:00:09]} 16. O-O-O {[%emt 0:04:59]} a5 {[%emt 0:01:07]} 17. Kb1 {[%emt 0:01:33]} Nb6 {[%emt 0:02:11]} 18. Rxd8+ {[%emt 0:05:38]} Qxd8 {[%emt 0:00:02]} 19. Rd1 {[%emt 0:01:09]} Qc7 {[%emt 0:00:17]} 20. f4 {[%emt 0:08:57]} Nec4 {[%emt 0:01:47]} 21. Ne4 {[%emt 0:06:39]} Bb4 {[%emt 0:02:05]} 22. Rd4 {[%emt 0:03:43]} Qc8 {[%emt 0:00:30]} 23. g4 {[%emt 0:03:55]} h5 {[%emt 0:01:08]} 24. Rxc4 {[%emt 0:04:00]} Nxc4 {[%emt 0:00:13]} 25. Qxc4 {[%emt 0:00:03]} hxg4 {[%emt 0:00:17]} 26. Qd4 {[%emt 0:05:53]} Rd8 {[%emt 0:01:47]} 27. Qe5+ {[%emt 0:01:03]} Ka8 {[%emt 0:00:22]} 28. Ne3 {[%emt 0:01:57]} Qd7 {[%emt 0:01:48]} 29. Ka2 {[%emt 0:04:46]} Re8 {[%emt 0:02:35]} 30. Qf6 {[%emt 0:02:26]} Ka7 {[%emt 0:02:16]} 31. f5 {[%emt 0:04:05]} c5 {[%emt 0:11:36]} 32. b3 {[%emt 0:03:25]} Kb8 {[%emt 0:19:44]} 33. Qb2 {[%emt 0:13:20]} Qc7 {[%emt 0:02:02]} 34. Nc4 {[%emt 0:02:30]} Qh2 {[%emt 0:01:31]} 35. e3 {[%emt 0:00:35]} Rd8 {[%emt 0:02:08]} 36. Qe5+ {[%emt 0:05:40]} Qxe5 {[%emt 0:00:07]} 37. Nxe5 {[%emt 0:00:01]} g3 {[%emt 0:00:10]} 38. f6 {[%emt 0:14:05]} Rd1 {[%emt 0:01:08]} 39. Nxf7 {[%emt 0:03:20]} c4 {[%emt 0:06:06]} 40. bxc4 {[%emt 0:03:48]} Rg1 {[%emt 0:00:26]} 41. Bf3 {[%emt 0:50:31]} g2 {[%emt 0:50:09]} 42. Bxg2 {[%emt 0:01:02]} Rxg2+ {[%emt 0:00:07]} 43. Kb1 {[%emt 0:00:02]} Re2 {[%emt 0:00:24]} 44. Nfg5 {[%emt 0:00:00]} Rxe3 {[%emt 0:00:00]} 45. c5 {[%emt 0:00:00]} Re1+ {[%emt 0:00:00]} 46. Kc2 {[%emt 0:00:00]} Rf1 {[%emt 0:00:00]} 47. f7 {[%emt 0:00:00]} b6 {[%emt 0:00:00]} 48. cxb6 {[%emt 0:00:00]} Kb7 {[%emt 0:00:00]} 49. Kd3 {[%emt 0:00:00]} Kxb6 {[%emt 0:00:00]} 50. Ng3 {[%emt 0:00:00]} Rf6 {[%emt 0:00:00]} 51. Kd4 {[%emt 0:00:00]} Kc6 {[%emt 0:00:00]} 52. Ke5 {[%emt 0:00:00]} Bc3+ {[%emt 0:00:00]} 53. Ke4 {[%emt 0:00:00]} Kd7 {[%emt 0:00:00]} 54. Kd5 {[%emt 0:00:00]} Bb4 {[%emt 0:00:00]} 55. Ke5 {[%emt 0:00:00]} Rg6 {[%emt 0:00:00]} 56. Kf5 {[%emt 0:00:00]} Rh6 {[%emt 0:00:00]} 57. Ne2 {[%emt 0:00:00]} Be7 {[%emt 0:00:00]} 58. Ne4 {[%emt 0:00:00]} Rh5+ {[%emt 0:00:00]} 59. Kg6 {[%emt 0:00:00]} Rh2 {[%emt 0:00:00]} 60. Nf6+ {[%emt 0:00:00]} Kd6 {[%emt 0:00:00]} 61. Nf4 {[%emt 0:13:00]} Bf8 {[%emt 0:07:00]} 62. N6h5 {[%emt 0:03:56]} Rh1 {[%emt 0:01:59]} 63. Kf6 {[%emt 0:00:37]} Rf1 {[%emt 0:00:35]} 64. Kg6 {[%emt 0:00:36]} Ke5 {[%emt 0:00:32]} 65. Kh7 {[%emt 0:02:21]} Bd6 {[%emt 0:03:48]} 66. Kg7 {[%emt 0:01:06]} Ra1 {[%emt 0:00:13]} 67. Ng6+ {[%emt 0:01:05]} Kf5 {[%emt 0:01:32]} 68. Ng3+ {[%emt 0:00:48]} Ke6 {[%emt 0:01:44]} 69. Ne4 {[%emt 0:00:05]} Bb4 {[%emt 0:00:05]} 70. Ng5+ {[%emt 0:05:24]} Kf5 {[%emt 0:00:56]} 71. Nf3 {[%emt 0:00:25]} Bc5 {[%emt 0:02:25]} 72. f8=Q+ {[%emt 0:00:39]} Bxf8+ {[%emt 0:00:10]} 73. Nxf8 {[%emt 0:00:03]} Rxa4 {[%emt 0:00:21]} 74. Nd7 {[%emt 0:00:18]} Rg4+ {[%emt 0:01:15]} 75. Kf7 {[%emt 0:00:08]} a4 {[%emt 0:00:24]} 76. Nc5 {[%emt 0:00:23]} a3 {[%emt 0:01:43]} 77. Nd2 {[%emt 0:00:07]} a2 {[%emt 0:00:15]} 78. Ndb3 {[%emt 0:00:54]} Rc4 {[%emt 0:00:31]} 79. Nd3 {[%emt 0:00:50]} Ke4 {[%emt 0:00:12]} 80. Ne1 {[%emt 0:00:41]} Rc1 {[%emt 0:00:29]} 81. Nd3 {[%emt 0:00:25]} Rf1+ {[%emt 0:00:11]} 0-1

[Event "FIDE Womens Grand Swiss 2023"]
[Site "Douglas/Isle of Man"]
[Date "2023.11.01"]
[Round "7.16"]
[White "Savitha Shri B"]
[Black "Wagner, Dinara"]
[Result "0-1"]
[ECO "B33"]
[WhiteElo "2375"]
[BlackElo "2461"]
[Annotator "ChessBase"]
[PlyCount "130"]
[EventDate "2023.10.04"]
[EventType "swiss"]
[EventCountry "GBR"]
[SourceTitle "playchess.com"]
[Source "ChessBase"]
[SourceQuality "1"]
[TimeControl "40/6000+30:20/3000+30:900+30"]

1. e4 {[%emt 0:10:40]} c5 {[%emt 0:10:07]} 2. Nf3 {[%emt 0:00:06]} Nc6 {[%emt 0:00:05]} 3. d4 {[%emt 0:01:45]} cxd4 {[%emt 0:00:06]} 4. Nxd4 {[%emt 0:00:20]} Nf6 {[%emt 0:00:04]} 5. Nc3 {[%emt 0:00:08]} e5 {[%emt 0:00:05]} 6. Ndb5 {[%emt 0:00:04]} d6 {[%emt 0:00:12]} 7. Bg5 {[%emt 0:03:07]} a6 {[%emt 0:00:11]} 8. Na3 {[%emt 0:00:05]} b5 {[%emt 0:00:05]} 9. Nd5 {[%emt 0:00:05]} Be7 {[%emt 0:00:06]} 10. Bxf6 {[%emt 0:00:06]} Bxf6 {[%emt 0:00:06]} 11. Nb1 {[%emt 0:00:29]} Bg5 {[%emt 0:00:58]} 12. a4 {[%emt 0:00:07]} b4 {[%emt 0:00:06]} 13. Bc4 {[%emt 0:01:53]} O-O {[%emt 0:00:11]} 14. O-O {[%emt 0:02:56]} Be6 {[%emt 0:01:17]} 15. Qd3 {[%emt 0:00:26]} a5 {[%emt 0:02:31]} 16. c3 {[%emt 0:00:24]} Rc8 {[%emt 0:12:34]} 17. Ba6 {[%emt 0:03:30]} bxc3 {[%emt 0:01:23]} 18. bxc3 {[%emt 0:11:12]} Rb8 {[%emt 0:00:41]} 19. Nd2 {[%emt 0:06:02]} Ne7 {[%emt 0:05:58]} 20. Nf3 {[%emt 0:06:58]} Bh6 {[%emt 0:15:01]} 21. Nxe7+ {[%emt 0:05:51]} Qxe7 {[%emt 0:00:17]} 22. Rfd1 {[%emt 0:00:56]} Rfd8 {[%emt 0:02:31]} 23. Bb5 {[%emt 0:03:00]} Rbc8 {[%emt 0:14:59]} 24. c4 {[%emt 0:07:37]} Rc5 {[%emt 0:00:41]} 25. h3 {[%emt 0:09:17]} Qc7 {[%emt 0:02:58]} 26. Ra2 {[%emt 0:04:16]} g6 {[%emt 0:01:19]} 27. Rc2 {[%emt 0:02:47]} f5 {[%emt 0:33:18]} 28. Nd2 {[%emt 0:09:40]} Bxd2 {[%emt 0:02:29]} 29. Rcxd2 {[%emt 0:00:23]} f4 {[%emt 0:00:12]} 30. Rc1 {[%emt 0:06:11]} Kf7 {[%emt 0:00:13]} 31. Kh2 {[%emt 0:02:55]} Ke7 {[%emt 0:01:58]} 32. g3 {[%emt 0:01:09]} Kf8 {[%emt 0:02:43]} 33. gxf4 {[%emt 0:00:44]} exf4 {[%emt 0:00:07]} 34. Qc3 {[%emt 0:02:16]} Kg8 {[%emt 0:01:24]} 35. Qf6 {[%emt 0:00:28]} Re5 {[%emt 0:00:25]} 36. c5 {[%emt 0:06:16]} Rf8 {[%emt 0:00:22]} 37. cxd6 {[%emt 0:00:06]} Qxc1 {[%emt 0:00:13]} 38. Qxe5 {[%emt 0:00:02]} Qxd2 {[%emt 0:00:04]} 39. Qxe6+ {[%emt 0:00:04]} Kg7 {[%emt 0:00:26]} 40. Kg1 {[%emt 0:03:26]} f3 {[%emt 0:01:21]} 41. Qe5+ {[%emt 0:27:46]} Kh6 {[%emt 0:23:18]} 42. d7 {[%emt 0:04:55]} Qg5+ {[%emt 0:15:09]} 43. Qg3 {[%emt 0:01:57]} Qxg3+ {[%emt 0:00:43]} 44. fxg3 {[%emt 0:00:04]} f2+ {[%emt 0:00:06]} 45. Kf1 {[%emt 0:03:20]} Kg7 {[%emt 0:00:34]} 46. Bc6 {[%emt 0:03:15]} g5 {[%emt 0:01:02]} 47. Bb5 {[%emt 0:03:25]} h5 {[%emt 0:03:46]} 48. Be2 {[%emt 0:01:00]} h4 {[%emt 0:02:58]} 49. gxh4 {[%emt 0:00:50]} gxh4 {[%emt 0:00:02]} 50. Bb5 {[%emt 0:04:08]} Kf6 {[%emt 0:02:22]} 51. Kxf2 {[%emt 0:00:07]} Ke7+ {[%emt 0:00:02]} 52. Kg2 {[%emt 0:02:14]} Rg8+ {[%emt 0:00:04]} 53. Kh2 {[%emt 0:00:07]} Rg3 {[%emt 0:00:11]} 54. Bc6 {[%emt 0:00:33]} Rc3 {[%emt 0:00:19]} 55. Bb5 {[%emt 0:00:01]} Rc2+ {[%emt 0:00:06]} 56. Kg1 {[%emt 0:00:03]} Rd2 {[%emt 0:01:56]} 57. Bc6 {[%emt 0:03:05]} Rd6 {[%emt 0:01:42]} 58. Bb5 {[%emt 0:00:37]} Re6 {[%emt 0:00:09]} 59. Kf2 {[%emt 0:00:28]} Rxe4 {[%emt 0:00:11]} 60. Kf3 {[%emt 0:02:15]} Rd4 {[%emt 0:00:03]} 61. Bc6 {[%emt 0:15:45]} Rb4 {[%emt 0:15:05]} 62. Ke2 {[%emt 0:01:58]} Rb3 {[%emt 0:00:33]} 63. Kf2 {[%emt 0:00:47]} Rxh3 {[%emt 0:00:20]} 64. Kg2 {[%emt 0:00:03]} Rc3 {[%emt 0:00:48]} 65. Bb5 {[%emt 0:00:10]} Rb3 {[%emt 0:00:05]} 0-1

[Event "FIDE Womens Grand Swiss 2023"]
[Site "Douglas/Isle of Man"]
[Date "2023.11.01"]
[Round "7.17"]
[White "Guichard, Pauline"]
[Black "Roebers, Eline"]
[Result "1-0"]
[ECO "E73"]
[WhiteElo "2358"]
[BlackElo "2390"]
[Annotator "ChessBase"]
[PlyCount "161"]
[EventDate "2023.10.04"]
[EventType "swiss"]
[EventCountry "GBR"]
[SourceTitle "playchess.com"]
[Source "ChessBase"]
[SourceQuality "1"]
[TimeControl "40/6000+30:20/3000+30:900+30"]

1. d4 {[%emt 0:10:03]} Nf6 {[%emt 0:10:04]} 2. c4 {[%emt 0:00:07]} g6 {[%emt 0:00:04]} 3. Nc3 {[%emt 0:00:16]} Bg7 {[%emt 0:00:03]} 4. e4 {[%emt 0:01:01]} d6 {[%emt 0:00:03]} 5. Be2 {[%emt 0:00:09]} O-O {[%emt 0:00:06]} 6. Be3 {[%emt 0:00:07]} c5 {[%emt 0:00:58]} 7. d5 {[%emt 0:01:28]} e6 {[%emt 0:00:06]} 8. Nf3 {[%emt 0:00:56]} exd5 {[%emt 0:00:05]} 9. cxd5 {[%emt 0:00:31]} Bg4 {[%emt 0:03:22]} 10. Nd2 {[%emt 0:03:01]} Bxe2 {[%emt 0:01:16]} 11. Qxe2 {[%emt 0:00:07]} Re8 {[%emt 0:00:26]} 12. O-O {[%emt 0:00:55]} Na6 {[%emt 0:00:03]} 13. Kh1 {[%emt 0:05:23]} Nc7 {[%emt 0:02:45]} 14. a4 {[%emt 0:02:45]} Rb8 {[%emt 0:02:32]} 15. f3 {[%emt 0:05:38]} b6 {[%emt 0:10:39]} 16. Nc4 {[%emt 0:14:08]} a6 {[%emt 0:07:50]} 17. Qd2 {[%emt 0:03:28]} b5 {[%emt 0:25:35]} 18. axb5 {[%emt 0:00:39]} axb5 {[%emt 0:00:05]} 19. Na5 {[%emt 0:00:14]} Qd7 {[%emt 0:00:22]} 20. Nc6 {[%emt 0:03:05]} Ra8 {[%emt 0:00:16]} 21. Rxa8 {[%emt 0:14:32]} Rxa8 {[%emt 0:00:05]} 22. b4 {[%emt 0:00:04]} Ra3 {[%emt 0:05:17]} 23. Nb1 {[%emt 0:10:42]} Rxe3 {[%emt 0:04:18]} 24. Qxe3 {[%emt 0:00:07]} Nfxd5 {[%emt 0:00:17]} 25. exd5 {[%emt 0:00:21]} Nxd5 {[%emt 0:00:05]} 26. Qe4 {[%emt 0:11:55]} Qxc6 {[%emt 0:00:05]} 27. bxc5 {[%emt 0:03:05]} dxc5 {[%emt 0:02:22]} 28. Rd1 {[%emt 0:01:48]} Bd4 {[%emt 0:03:53]} 29. Na3 {[%emt 0:06:33]} f5 {[%emt 0:01:42]} 30. Qd3 {[%emt 0:01:50]} Nc3 {[%emt 0:02:26]} 31. Re1 {[%emt 0:00:34]} Bf6 {[%emt 0:03:54]} 32. Rc1 {[%emt 0:05:40]} b4 {[%emt 0:05:36]} 33. Nc4 {[%emt 0:00:23]} Qe6 {[%emt 0:03:44]} 34. h3 {[%emt 0:03:15]} Bd4 {[%emt 0:01:39]} 35. Kh2 {[%emt 0:01:56]} h5 {[%emt 0:03:08]} 36. Ra1 {[%emt 0:00:32]} Qe7 {[%emt 0:01:13]} 37. f4 {[%emt 0:00:53]} h4 {[%emt 0:01:41]} 38. Qf3 {[%emt 0:00:38]} Qe4 {[%emt 0:01:29]} 39. Ra8+ {[%emt 0:00:22]} Kg7 {[%emt 0:01:43]} 40. Ra7+ {[%emt 0:00:33]} Kf6 {[%emt 0:05:50]} 41. Ra6+ {[%emt 0:26:08]} Ke7 {[%emt 0:20:07]} 42. Rxg6 {[%emt 0:12:32]} Qxf3 {[%emt 0:08:09]} 43. gxf3 {[%emt 0:00:04]} Nd5 {[%emt 0:00:03]} 44. Rh6 {[%emt 0:04:58]} Ne3 {[%emt 0:02:41]} 45. Na5 {[%emt 0:02:33]} Kd7 {[%emt 0:05:17]} 46. Nb3 {[%emt 0:00:41]} Nc2 {[%emt 0:01:53]} 47. Na5 {[%emt 0:02:27]} Na3 {[%emt 0:05:40]} 48. Rb6 {[%emt 0:00:28]} Bc3 {[%emt 0:01:41]} 49. Kg2 {[%emt 0:01:39]} Bd2 {[%emt 0:04:02]} 50. Kf1 {[%emt 0:01:24]} Bxf4 {[%emt 0:00:47]} 51. Nb3 {[%emt 0:02:46]} Kc7 {[%emt 0:01:43]} 52. Rf6 {[%emt 0:00:33]} c4 {[%emt 0:00:29]} 53. Na5 {[%emt 0:00:30]} Bd6 {[%emt 0:03:09]} 54. Ke2 {[%emt 0:00:30]} b3 {[%emt 0:00:43]} 55. Rxf5 {[%emt 0:00:28]} b2 {[%emt 0:01:02]} 56. Rf7+ {[%emt 0:00:07]} Kb6 {[%emt 0:00:10]} 57. Rb7+ {[%emt 0:00:06]} Kxa5 {[%emt 0:00:03]} 58. Rxb2 {[%emt 0:00:05]} Bf4 {[%emt 0:01:43]} 59. Rb7 {[%emt 0:01:39]} Nc2 {[%emt 0:01:01]} 60. Rf7 {[%emt 0:00:35]} Nd4+ {[%emt 0:00:44]} 61. Kd1 {[%emt 0:15:11]} Bd6 {[%emt 0:16:28]} 62. Rd7 {[%emt 0:00:49]} Nb5 {[%emt 0:00:11]} 63. Rh7 {[%emt 0:00:28]} Bg3 {[%emt 0:00:56]} 64. f4 {[%emt 0:00:18]} Kb4 {[%emt 0:00:31]} 65. f5 {[%emt 0:00:15]} Nd4 {[%emt 0:00:28]} 66. f6 {[%emt 0:00:25]} c3 {[%emt 0:01:00]} 67. f7 {[%emt 0:00:07]} Ne6 {[%emt 0:00:39]} 68. Rh8 {[%emt 0:01:15]} Kb3 {[%emt 0:00:25]} 69. Rc8 {[%emt 0:00:39]} Bf4 {[%emt 0:00:25]} 70. Rc6 {[%emt 0:00:19]} Be3 {[%emt 0:00:27]} 71. Ke2 {[%emt 0:00:39]} Bc5 {[%emt 0:00:42]} 72. Rxc5 {[%emt 0:00:19]} Nxc5 {[%emt 0:00:03]} 73. f8=Q {[%emt 0:00:04]} Na4 {[%emt 0:00:57]} 74. Qb8+ {[%emt 0:00:53]} Kc2 {[%emt 0:00:12]} 75. Qb4 {[%emt 0:00:35]} Nb2 {[%emt 0:00:03]} 76. Qxh4 {[%emt 0:00:21]} Kc1 {[%emt 0:01:03]} 77. Qf4+ {[%emt 0:00:38]} Kb1 {[%emt 0:00:03]} 78. Qe4+ {[%emt 0:00:27]} Kc1 {[%emt 0:00:12]} 79. h4 {[%emt 0:00:21]} c2 {[%emt 0:00:05]} 80. h5 {[%emt 0:00:20]} Nd1 {[%emt 0:00:03]} 81. Qb4 {[%emt 0:00:49]} 1-0

[Event "FIDE Womens Grand Swiss 2023"]
[Site "Douglas/Isle of Man"]
[Date "2023.11.01"]
[Round "7.18"]
[White "Terbe, Julianna"]
[Black "Beydullayeva, Govhar"]
[Result "1-0"]
[ECO "E16"]
[WhiteElo "2266"]
[BlackElo "2383"]
[Annotator "ChessBase"]
[PlyCount "113"]
[EventDate "2023.10.04"]
[EventType "swiss"]
[EventCountry "GBR"]
[SourceTitle "playchess.com"]
[Source "ChessBase"]
[SourceQuality "1"]
[TimeControl "40/6000+30:20/3000+30:900+30"]

1. Nf3 {[%emt 0:10:04]} d5 {[%emt 0:10:14]} 2. d4 {[%emt 0:00:09]} Nf6 {[%emt 0:00:04]} 3. c4 {[%emt 0:00:06]} e6 {[%emt 0:00:02]} 4. g3 {[%emt 0:00:07]} Bb4+ {[%emt 0:00:19]} 5. Nbd2 {[%emt 0:00:11]} O-O {[%emt 0:00:16]} 6. Bg2 {[%emt 0:00:07]} b6 {[%emt 0:00:15]} 7. O-O {[%emt 0:01:08]} Bb7 {[%emt 0:01:34]} 8. a3 {[%emt 0:00:23]} Be7 {[%emt 0:11:15]} 9. b4 {[%emt 0:02:48]} a5 {[%emt 0:02:44]} 10. b5 {[%emt 0:18:00]} a4 {[%emt 0:17:39]} 11. Ne5 {[%emt 0:11:04]} Nfd7 {[%emt 0:12:53]} 12. Ndf3 {[%emt 0:10:33]} c5 {[%emt 0:06:03]} 13. Bb2 {[%emt 0:12:43]} Nf6 {[%emt 0:07:08]} 14. e3 {[%emt 0:06:54]} Ne4 {[%emt 0:01:11]} 15. dxc5 {[%emt 0:02:49]} bxc5 {[%emt 0:01:35]} 16. Nd2 {[%emt 0:04:02]} Nf6 {[%emt 0:14:34]} 17. Qe2 {[%emt 0:05:39]} Qb6 {[%emt 0:01:09]} 18. Rab1 {[%emt 0:00:32]} Rd8 {[%emt 0:02:03]} 19. e4 {[%emt 0:03:39]} dxc4 {[%emt 0:02:28]} 20. Nexc4 {[%emt 0:02:29]} Qa7 {[%emt 0:00:23]} 21. Rfd1 {[%emt 0:03:10]} Nbd7 {[%emt 0:00:36]} 22. e5 {[%emt 0:02:10]} Ne8 {[%emt 0:02:21]} 23. Ne4 {[%emt 0:02:29]} Rab8 {[%emt 0:03:15]} 24. Qg4 {[%emt 0:04:25]} Bd5 {[%emt 0:02:31]} 25. Ncd6 {[%emt 0:01:45]} Bxd6 {[%emt 0:01:45]} 26. Nxd6 {[%emt 0:02:49]} Bxg2 {[%emt 0:02:09]} 27. Kxg2 {[%emt 0:00:01]} Nb6 {[%emt 0:03:24]} 28. Nxe8 {[%emt 0:01:25]} Rxe8 {[%emt 0:00:04]} 29. Bc1 {[%emt 0:00:09]} Kh8 {[%emt 0:00:59]} 30. Bg5 {[%emt 0:01:36]} Nd5 {[%emt 0:00:23]} 31. Rdc1 {[%emt 0:00:52]} Rec8 {[%emt 0:01:18]} 32. Rc4 {[%emt 0:00:07]} Qc7 {[%emt 0:01:18]} 33. Re1 {[%emt 0:00:44]} Rxb5 {[%emt 0:01:04]} 34. Qh5 {[%emt 0:00:55]} Qb7 {[%emt 0:00:14]} 35. Kh3 {[%emt 0:00:11]} f6 {[%emt 0:01:26]} 36. exf6 {[%emt 0:00:57]} gxf6 {[%emt 0:00:22]} 37. Bh6 {[%emt 0:01:04]} Qc6 {[%emt 0:01:27]} 38. Qg4 {[%emt 0:00:33]} Rg8 {[%emt 0:00:16]} 39. Qxe6 {[%emt 0:00:10]} Qxe6+ {[%emt 0:00:42]} 40. Rxe6 {[%emt 0:00:05]} Nb6 {[%emt 0:00:16]} 41. Rg4 {[%emt 0:27:19]} Rxg4 {[%emt 0:21:13]} 42. Kxg4 {[%emt 0:00:14]} Kg8 {[%emt 0:00:02]} 43. Rxf6 {[%emt 0:02:22]} Nd7 {[%emt 0:00:04]} 44. Ra6 {[%emt 0:01:31]} c4 {[%emt 0:03:24]} 45. Rxa4 {[%emt 0:01:42]} Ne5+ {[%emt 0:00:58]} 46. Kf4 {[%emt 0:03:04]} c3 {[%emt 0:08:49]} 47. Ra8+ {[%emt 0:05:25]} Kf7 {[%emt 0:00:04]} 48. Rc8 {[%emt 0:00:08]} Nd7 {[%emt 0:14:01]} 49. Ke4 {[%emt 0:02:20]} Nf6+ {[%emt 0:02:16]} 50. Kd4 {[%emt 0:01:38]} Rb2 {[%emt 0:01:30]} 51. Be3 {[%emt 0:02:12]} c2 {[%emt 0:02:42]} 52. Bc1 {[%emt 0:01:05]} Ra2 {[%emt 0:00:41]} 53. f3 {[%emt 0:03:06]} Nd7 {[%emt 0:00:29]} 54. Kc3 {[%emt 0:00:47]} Ne5 {[%emt 0:01:01]} 55. Kb3 {[%emt 0:00:32]} Ra1 {[%emt 0:00:15]} 56. Kxc2 {[%emt 0:00:10]} Ra2+ {[%emt 0:00:46]} 57. Bb2 {[%emt 0:00:59]} 1-0